bitfinex/quotes_SOLUSD_20251001
["timestamp","ask_amount","ask_price","bid_price","bid_amount"]
[1759324043342,18.16327062,218.93,218.9,32.16]
[1759324043538,5.26739526,218.95,218.9,32.16]
[1759324043769,4.56739526,218.95,218.9,32.36]
[1759324044271,4.56739526,218.95,218.9,32.16]
[1759324044563,5.26739526,218.95,218.9,32.16]
[1759324045262,0.7,218.94,218.9,67.78]
[1759324045471,4.56739526,218.95,218.9,67.78]
[1759324045663,5.26739526,218.95,218.9,67.78]
[1759324046670,5.26739526,218.95,218.9,67.98]
[1759324047258,4.56739526,218.95,218.91,0.2]
[1759324047464,18.16261102,218.97,218.9,72.34825792]
[1759324047667,18.16261102,218.97,218.91,0.2]
[1759324048361,13.59559401,218.97,218.91,0.2]
[1759324049166,13.59559401,218.97,218.92,4.56787867]
[1759324049369,5.26664133,218.98,218.93,32.14]
[1759324049571,13.59559401,218.97,218.93,32.14]
[1759324049778,0.7,218.96,218.93,32.14]
[1759324049949,13.59559401,218.97,218.93,32.14]
[1759324050801,0.7,218.96,218.93,32.14]
[1759324051073,18.86261913,218.97,218.93,32.14]
[1759324052067,13.59559401,218.97,218.93,32.14]
[1759324052273,14.29559401,218.97,218.93,32.14]
[1759324052652,13.59559401,218.97,218.93,32.14]
[1759324053155,14.29559401,218.97,218.93,32.14]
[1759324053746,18.8624951,218.97,218.93,32.14]
[1759324053952,0.7,218.96,218.93,32.14]
[1759324054168,18.1624951,218.97,218.9,40.18829444]
[1759324054169,0.7,218.95,218.9,40.18829444]
[1759324054355,0.7,218.95,218.91,32.14]
[1759324055552,13.59559401,218.95,218.91,36.70807386]
[1759324056183,13.59559401,218.96,218.91,36.90807386]
[1759324056585,14.29559401,218.96,218.91,36.90807386]
[1759324056790,13.59559401,218.96,218.92,0.2]
[1759324057271,13.59559401,218.96,218.91,36.70807386]
[1759324057272,18.86269199,218.96,218.91,36.70807386]
[1759324058053,0.7,218.95,218.92,32.14]
[1759324058249,0.7,218.94,218.92,32.14]
[1759324058483,0.7,218.93,218.92,32.14]
[1759324058656,0.7,218.93,218.9,35.62]
[1759324058990,14.29559401,218.92,218.9,35.62]
[1759324059292,18.16347268,218.92,218.91,32.14]
[1759324059679,18.86347268,218.92,218.91,32.14]
[1759324060391,14.29559401,218.92,218.91,32.14]
[1759324061460,13.59559401,218.92,218.91,32.14]
[1759324061984,14.29559401,218.92,218.91,32.14]
[1759324062287,14.29559401,218.92,218.9,35.62]
[1759324062589,18.16350027,218.92,218.91,32.14]
[1759324063164,14.29559401,218.92,218.91,32.14]
[1759324063374,22.07738095,218.92,218.91,32.14]
[1759324063576,18.86347268,218.92,218.91,32.14]
[1759324064094,18.86347268,218.92,218.9,35.62]
[1759324064290,18.16347268,218.92,218.91,32.14]
[1759324064493,18.1633034,218.93,218.91,32.14]
[1759324065087,0.7,218.92,218.91,32.14]
[1759324065872,5.26787867,218.92,218.91,32.14]
[1759324066977,0.7,218.92,218.91,32.14]
[1759324067782,18.86347268,218.92,218.91,32.14]
[1759324068787,14.29559401,218.92,218.91,32.14]
[1759324070165,13.59559401,218.92,218.91,32.14]
[1759324072485,0.7,218.95,218.91,32.14]
[1759324072690,14.29559401,218.94,218.91,32.14]
[1759324073275,18.86316001,218.94,218.91,32.14]
[1759324073487,0.66,218.93,218.91,32.14]
[1759324073676,13.59559401,218.92,218.9,35.62]
[1759324073878,13.59559401,218.92,218.91,32.12]
[1759324074282,18.16316001,218.94,218.91,32.12]
[1759324074490,13.59559401,218.92,218.9,35.62]
[1759324074696,13.59559401,218.92,218.91,32.12]
[1759324075291,14.25559401,218.92,218.91,32.12]
[1759324075685,22.03738095,218.92,218.9,35.62]
[1759324075870,17.46950228,218.91,218.9,35.62]
[1759324076186,17.46950228,218.91,218.9,67.74]
[1759324077802,22.32191276,218.91,218.9,35.62]
[1759324077989,22.32191276,218.91,218.74,79.3]
[1759324077990,13.87991715,218.9,218.77,35.62]
[1759324078191,13.59559401,218.84,218.78,32.12]
[1759324078495,14.25559401,218.84,218.78,32.12]
[1759324078881,14.25559401,218.84,218.78,52.92]
[1759324079083,0.66,218.83,218.78,32.12]
[1759324079277,0.66,218.82,218.78,32.12]
[1759324080192,14.25559401,218.84,218.78,36.69076414]
[1759324080496,13.59559401,218.84,218.79,0.2]
[1759324080675,14.25559401,218.84,218.8,32.12]
[1759324081097,18.82516416,218.84,218.8,32.12]
[1759324081295,0.66,218.83,218.8,32.12]
[1759324082485,3.87390827,218.82,218.81,32.12]
[1759324082683,0.66,218.82,218.81,32.12]
[1759324083286,5.22996618,218.82,218.81,32.12]
[1759324083494,0.66,218.82,218.81,32.12]
[1759324083689,13.59559401,218.83,218.81,32.12]
[1759324084695,18.1654139,218.83,218.81,32.12]
[1759324084896,18.1654139,218.83,218.77,35.62]
[1759324084897,18.1654139,218.83,218.77,40.19100263]
[1759324085101,0.66,218.82,218.77,35.62]
[1759324085276,0.66,218.81,218.77,35.62]
[1759324085480,0.66,218.81,218.78,32.12]
[1759324085680,0.66,218.81,218.77,35.62]
[1759324085886,0.66,218.81,218.78,32.12]
[1759324086084,0.66,218.8,218.78,32.12]
[1759324086382,5.23005714,218.82,218.78,32.12]
[1759324086686,5.2301848,218.81,218.78,32.12]
[1759324087396,4.5701848,218.81,218.78,32.12]
[1759324087576,5.2301848,218.81,218.78,32.12]
[1759324087777,4.56999463,218.82,218.78,32.12]
[1759324087976,14.25559401,218.83,218.78,36.69075549]
[1759324088191,13.59559401,218.83,218.79,0.2]
[1759324088402,13.59559401,218.83,218.8,32.14]
[1759324088403,4.56977833,218.83,218.8,32.14]
[1759324088797,13.59559401,218.84,218.8,32.14]
[1759324088996,14.25559401,218.84,218.8,32.14]
[1759324089581,18.16518701,218.84,218.8,32.14]
[1759324089883,18.16493568,218.85,218.8,36.91035091]
[1759324090189,18.82493568,218.85,218.8,36.71035091]
[1759324090389,18.16493568,218.85,218.8,32.14]
[1759324090590,0.66,218.84,218.8,32.14]
[1759324090792,18.16493568,218.85,218.8,32.34]
[1759324090997,22.03884395,218.85,218.8,32.14]
[1759324091301,0.66,218.84,218.8,32.14]
[1759324091494,0.66,218.83,218.8,32.14]
[1759324091896,4.5696651,218.84,218.8,32.14]
[1759324092206,5.2296651,218.84,218.8,32.14]
[1759324092604,4.5696651,218.84,218.8,32.14]
[1759324092799,5.2296651,218.84,218.8,32.14]
[1759324093200,0.66,218.83,218.8,32.14]
[1759324094421,13.59559401,218.8,218.77,35.62]
[1759324094709,17.46950228,218.79,218.78,32.12]
[1759324095406,22.04009508,218.79,218.78,32.12]
[1759324096112,13.59559401,218.79,218.78,32.12]
[1759324099387,14.25559401,218.79,218.78,32.12]
[1759324099589,18.82618681,218.79,218.78,32.12]
[1759324099992,18.87618681,218.79,218.78,32.12]
[1759324100220,13.59559401,218.79,218.78,32.12]
[1759324102797,14.30559401,218.79,218.78,32.12]
[1759324103206,13.59559401,218.79,218.77,35.62]
[1759324103411,13.59559401,218.79,218.78,32.12]
[1759324104009,0.66,218.85,218.78,32.32]
[1759324104213,2.38531105,218.87,218.81,20.8]
[1759324104416,4.56783864,218.93,218.82,32.12]
[1759324104607,5.22783864,218.93,218.83,0.2]
[1759324104803,2.38446187,218.91,218.84,32.12]
[1759324105003,13.59559401,218.91,218.84,32.32]
[1759324105201,13.59559401,218.91,218.84,32.12]
[1759324105415,0.66,218.9,218.85,32.12]
[1759324105615,0.66,218.9,218.86,32.12]
[1759324105920,0.66,218.89,218.87,32.12]
[1759324106115,0.66,218.89,218.88,32.12]
[1759324107612,0.66,218.89,218.84,25.36953753]
[1759324107805,0.66,218.89,218.85,32.12]
[1759324108530,0.66,218.89,218.85,36.68923457]
[1759324109323,4.56830872,218.9,218.85,36.68923457]
[1759324109494,0.66,218.9,218.85,36.68923457]
[1759324109814,4.56808734,218.91,218.85,36.68923457]
[1759324110019,0.66,218.9,218.85,36.68923457]
[1759324110318,0.66,218.89,218.85,36.68923457]
[1759324110919,13.59559401,218.92,218.86,32.12]
[1759324110920,0.66,218.88,218.86,32.12]
[1759324111116,5.22833115,218.9,218.86,32.12]
[1759324111307,0.66,218.89,218.86,32.12]
[1759324111609,4.56833115,218.9,218.86,32.12]
[1759324111818,5.22833115,218.9,218.86,32.12]
[1759324112209,0.28432314,218.86,218.77,35.62]
[1759324112402,13.59559401,218.83,218.78,32.12]
[1759324112709,2.71757837,218.82,218.78,32.12]
[1759324112915,2.71757837,218.82,218.77,35.62]
[1759324112916,13.59559401,218.81,218.77,35.62]
[1759324113116,14.25559401,218.8,218.79,32.12]
[1759324113427,16.31317238,218.8,218.79,32.12]
[1759324114225,20.88355629,218.8,218.79,32.12]
[1759324115513,3.84154866,218.94,218.79,36.8905928]
[1759324115715,20.0,218.98,218.79,36.89054373]
[1759324115716,13.59559401,218.86,218.79,36.89054373]
[1759324115916,0.66,218.87,218.82,20.8]
[1759324116110,11.42031987,218.91,218.83,32.12]
[1759324116111,0.66,218.9,218.83,32.12]
[1759324116429,13.59559401,218.89,218.83,32.12]
[1759324117201,4.56871345,218.88,218.83,32.12]
[1759324117400,4.56871345,218.88,218.83,36.88974987]
[1759324117909,4.56852709,218.89,218.83,36.88974987]
[1759324118305,13.59559401,218.89,218.83,36.88974987]
[1759324119233,13.59559401,218.89,218.83,36.88972646]
[1759324121628,18.16420042,218.89,218.83,36.88972646]
[1759324121801,18.82420042,218.89,218.83,36.68972646]
[1759324122200,0.66,218.88,218.82,20.8]
[1759324122403,0.66,218.87,218.78,4.57080171]
[1759324122623,13.59559401,218.88,218.79,32.32]
[1759324122806,13.59559401,218.88,218.8,0.2]
[1759324123215,14.25559401,218.88,218.8,0.2]
[1759324123930,4.56892219,218.87,218.81,4.57017503]
[1759324124424,0.66,218.86,218.82,32.12]
[1759324124626,0.66,218.85,218.82,67.76]
[1759324124929,7.28650056,218.87,218.82,67.76]
[1759324125126,5.22892219,218.87,218.83,32.12]
[1759324125814,0.66,218.86,218.83,32.12]
[1759324126125,18.1643475,218.88,218.84,32.12]
[1759324126428,18.8243475,218.88,218.84,32.12]
[1759324128212,18.8243475,218.88,218.82,40.20994257]
[1759324128413,18.8243475,218.88,218.83,32.12]
[1759324128828,14.25559401,218.88,218.83,36.68962784]
[1759324129830,0.66,218.88,218.83,36.68962784]
[1759324130136,0.66,218.87,218.83,36.68962784]
[1759324130313,0.66,218.87,218.83,32.12]
[1759324131433,4.56892227,218.87,218.82,35.64]
[1759324131613,0.66,218.86,218.83,32.12]
[1759324133028,4.56829602,218.9,218.83,32.12]
[1759324133213,4.56871345,218.88,218.83,32.12]
[1759324133914,5.25871345,218.88,218.83,32.12]
[1759324134120,5.25871345,218.88,218.84,32.12]
[1759324134631,0.69,218.87,218.84,32.12]
[1759324135009,0.69,218.87,218.82,40.20996569]
[1759324135335,0.69,218.87,218.83,32.12]
[1759324135510,0.69,218.87,218.82,40.40996569]
[1759324135713,5.25898201,218.87,218.83,32.12]
[1759324135926,4.56898201,218.87,218.83,32.12]
[1759324136134,0.69,218.86,218.83,32.12]
[1759324136824,13.59559401,218.87,218.83,32.12]
[1759324137533,14.28559401,218.87,218.83,32.12]
[1759324137733,13.59559401,218.87,218.83,36.68968265]
[1759324138032,0.69,218.86,218.82,35.64]
[1759324138214,0.69,218.86,218.84,32.12]
[1759324139530,13.59559401,218.87,218.84,32.12]
[1759324139733,14.28559401,218.87,218.84,32.12]
[1759324140236,18.85459104,218.87,218.84,32.12]
[1759324140632,18.16459104,218.87,218.84,32.12]
[1759324140930,0.69,218.86,218.85,32.1]
[1759324141516,5.25913095,218.86,218.85,32.1]
[1759324141927,0.69,218.86,218.85,32.1]
[1759324143219,18.85430746,218.88,218.85,32.1]
[1759324143541,0.69,218.87,218.85,32.1]
[1759324144336,13.59559401,218.88,218.85,32.1]
[1759324144713,14.28559401,218.88,218.85,32.1]
[1759324145119,18.85448653,218.88,218.85,32.1]
[1759324145313,0.69,218.87,218.85,32.1]
[1759324145720,18.16448653,218.88,218.86,32.1]
[1759324145921,18.16448653,218.88,218.87,32.1]
[1759324146410,18.85448653,218.88,218.87,32.1]
[1759324149326,13.59559401,218.88,218.87,32.1]
[1759324150532,18.85430746,218.88,218.87,32.1]
[1759324151714,18.16430746,218.88,218.87,32.1]
[1759324152126,2.3847651,218.89,218.87,32.1]
[1759324152421,3.0747651,218.89,218.87,32.1]
[1759324152743,7.64330155,218.89,218.87,32.1]
[1759324153130,3.0747651,218.89,218.87,32.1]
[1759324153330,0.69,218.88,218.87,32.1]
[1759324153549,14.28559401,218.88,218.87,32.1]
[1759324153732,14.28559401,218.88,218.83,4.56972757]
[1759324153926,18.85430746,218.88,218.84,32.1]
[1759324154534,18.85430746,218.88,218.83,4.56972757]
[1759324154721,18.16430746,218.88,218.84,32.1]
[1759324154943,18.85430746,218.88,218.84,32.1]
[1759324155634,0.69,218.87,218.84,32.1]
[1759324157433,4.56895088,218.87,218.82,40.20992237]
[1759324157634,0.69,218.86,218.83,32.1]
[1759324158546,4.56895088,218.87,218.83,32.1]
[1759324159319,5.25895088,218.87,218.83,32.1]
[1759324162125,18.16435468,218.88,218.83,36.66975662]
[1759324162331,13.59559401,218.88,218.83,36.86975662]
[1759324162641,18.82432495,218.88,218.83,36.86975662]
[1759324162948,18.82432495,218.88,218.83,36.66975662]
[1759324163741,18.87432495,218.88,218.83,36.66975662]
[1759324166455,0.71,218.87,218.83,36.66975662]
[1759324166659,0.71,218.86,218.83,36.66975662]
[1759324166959,18.87432495,218.88,218.83,36.66975662]
[1759324167201,13.59559401,218.88,218.83,36.66975662]
[1759324167472,13.59559401,218.88,218.83,36.86975662]
[1759324167679,13.59559401,218.88,218.83,36.66975662]
[1759324167856,13.59559401,218.88,218.84,0.2]
[1759324168379,13.59559401,218.88,218.83,36.86975662]
[1759324169363,3.0947651,218.89,218.84,0.2]
[1759324169565,2.3847651,218.89,218.83,36.66975662]
[1759324169880,3.0947651,218.89,218.83,36.86975662]
[1759324171173,0.71,218.88,218.84,32.1]
[1759324171379,0.71,218.87,218.84,32.1]
[1759324171585,6.95327775,218.89,218.84,36.66943174]
[1759324171586,7.66327775,218.89,218.84,36.66943174]
[1759324172090,0.71,218.88,218.84,36.66943174]
[1759324172268,2.3847651,218.89,218.84,36.66943174]
[1759324172464,2.3847651,218.89,218.85,35.84]
[1759324172972,2.3847651,218.89,218.86,0.2]
[1759324173164,2.3847651,218.89,218.87,32.1]
[1759324174853,2.3847651,218.89,218.87,36.66891081]
[1759324175887,2.3847651,218.89,218.87,32.1]
[1759324176686,0.71,218.88,218.85,35.64]
[1759324176854,2.3847651,218.89,218.86,32.1]
[1759324177664,2.3847651,218.89,218.86,36.66907555]
[1759324179787,2.3847651,218.89,218.86,32.1]
[1759324180077,0.71,218.88,218.87,32.08]
[1759324181877,2.3847651,218.89,218.87,32.08]
[1759324182067,2.3847651,218.89,218.85,40.20928533]
[1759324182068,0.71,218.88,218.85,35.64]
[1759324182272,2.3847651,218.89,218.86,32.08]
[1759324182675,2.3847651,218.89,218.87,0.2]
[1759324182894,13.59559401,218.92,218.88,32.08]
[1759324183061,16.68982382,218.92,218.88,32.08]
[1759324183465,16.68982382,218.92,218.89,32.08]
[1759324184107,2.38422981,218.92,218.89,36.64849]
[1759324184266,4.56709275,218.96,218.9,0.2]
[1759324184267,0.71,218.96,218.9,0.2]
[1759324184467,0.71,218.96,218.85,35.64]
[1759324184468,0.71,218.96,218.91,32.08]
[1759324184678,0.71,218.95,218.88,25.36867924]
[1759324184889,0.71,218.94,218.89,32.08]
[1759324185572,0.71,218.93,218.89,32.08]
[1759324185779,0.71,218.93,218.88,25.36867924]
[1759324186089,0.71,218.93,218.9,32.08]
[1759324186278,13.59559401,218.96,218.9,32.08]
[1759324186475,3.92535624,218.95,218.9,32.08]
[1759324186791,0.71,218.94,218.9,32.08]
[1759324186992,3.92535624,218.94,218.9,32.08]
[1759324187187,0.71,218.93,218.9,32.08]
[1759324188677,5.27770047,218.93,218.9,32.08]
[1759324188876,3.21535624,218.91,218.85,35.64]
[1759324189106,3.21535624,218.88,218.85,35.64]
[1759324189283,3.21535624,218.86,218.85,35.64]
[1759324189602,3.92535624,218.86,218.85,67.72]
[1759324190295,8.49448719,218.86,218.85,67.72]
[1759324192585,7.78305671,218.87,218.85,67.72]
[1759324192783,8.49305671,218.87,218.85,67.72]
[1759324193494,13.0620035,218.87,218.85,67.72]
[1759324193877,5.27894679,218.87,218.85,67.72]
[1759324194797,0.65,218.86,218.85,35.64]
[1759324195006,0.65,218.86,218.85,67.72]
[1759324196178,4.56894679,218.87,218.85,67.72]
[1759324196386,5.21894679,218.87,218.85,67.72]
[1759324196980,4.56872874,218.88,218.85,67.72]
[1759324197278,0.65,218.88,218.85,67.72]
[1759324197479,13.71961676,218.89,218.85,72.48929404]
[1759324197676,4.56833407,218.9,218.85,72.48929404]
[1759324197882,5.21833407,218.9,218.85,72.48929404]
[1759324198192,13.59559401,218.91,218.86,0.2]
[1759324198400,18.69986753,219.02,218.87,32.08]
[1759324198401,3.03377859,218.97,218.87,32.08]
[1759324198587,2.38377859,218.97,218.88,0.2]
[1759324198787,2.38377859,218.97,218.89,32.08]
[1759324198986,2.38377859,218.97,218.9,4.76829602]
[1759324199189,2.38377859,218.97,218.91,32.08]
[1759324200189,2.38377859,218.97,218.92,4.76787867]
[1759324200492,2.38377859,218.97,218.93,32.28]
[1759324201182,2.38377859,218.97,218.94,0.2]
[1759324201397,0.65,219.03,218.95,32.28]
[1759324201597,3.93798317,219.1,218.96,0.2]
[1759324201598,2.38311022,219.02,218.96,0.2]
[1759324201783,2.38311022,219.02,218.97,32.08]
[1759324202186,0.65,219.05,218.98,4.76662708]
[1759324202388,5.21527238,219.05,218.99,32.08]
[1759324202588,2.38290915,219.03,218.99,32.08]
[1759324202804,3.03290915,219.03,218.99,32.08]
[1759324203496,0.65,219.02,218.99,32.08]
[1759324203690,0.65,219.01,218.99,32.08]
[1759324204110,0.65,219.01,219.0,32.08]
[1759324204287,2.38290915,219.03,219.0,32.08]
[1759324204611,0.65,219.02,219.0,32.08]
[1759324205196,6.94850129,219.03,219.0,32.08]
[1759324205389,0.65,219.02,219.0,32.08]
[1759324205588,2.38290915,219.03,219.0,32.08]
[1759324205815,0.65,219.02,219.0,32.08]
[1759324205988,0.65,219.01,219.0,32.08]
[1759324206190,5.21600155,219.01,219.0,32.08]
[1759324206525,8.43135779,219.01,218.92,20.8]
[1759324206822,13.59559401,218.99,218.93,32.06]
[1759324207026,16.81095025,218.99,218.93,32.06]
[1759324207189,0.65,218.98,218.93,32.06]
[1759324207697,4.56674446,218.98,218.93,32.06]
[1759324208106,5.21674446,218.98,218.93,32.06]
[1759324208309,4.56674446,218.98,218.93,32.06]
[1759324208617,0.65,218.97,218.93,32.06]
[1759324210599,0.65,218.96,218.93,32.06]
[1759324210928,0.65,218.95,218.94,32.06]
[1759324211091,5.21690997,218.97,218.94,32.06]
[1759324212320,0.65,218.96,218.94,32.06]
[1759324212518,0.65,218.95,218.94,32.06]
[1759324214022,13.59559401,218.96,218.94,32.06]
[1759324214400,5.21699009,218.97,218.94,32.06]
[1759324214716,4.56699009,218.97,218.94,32.06]
[1759324214921,0.65,218.96,218.94,32.06]
[1759324216426,5.21721999,218.96,218.94,32.06]
[1759324218322,4.56685625,218.97,218.94,32.06]
[1759324218509,13.59559401,218.98,218.94,32.06]
[1759324218897,14.24559401,218.98,218.94,32.06]
[1759324219323,18.81222661,218.98,218.94,32.06]
[1759324219621,0.65,218.97,218.94,32.06]
[1759324219822,0.67,218.96,218.94,32.06]
[1759324219998,29.57879433,218.98,218.94,32.06]
[1759324220201,0.67,218.95,218.94,32.06]
[1759324220509,18.1628468,218.95,218.87,34.51459919]
[1759324220709,3.21535624,218.93,218.85,35.84]
[1759324220908,0.67,218.93,218.86,32.06]
[1759324221226,0.67,218.93,218.86,52.86]
[1759324221528,0.67,218.93,218.86,53.06]
[1759324221721,13.59559401,218.94,218.86,57.42895203]
[1759324221898,13.59559401,218.94,218.87,0.2]
[1759324222521,5.23725279,218.95,218.88,4.56871345]
[1759324222731,5.23725279,218.95,218.88,4.76871345]
[1759324223130,13.71585324,218.96,218.89,21.0]
[1759324223312,5.23664734,218.98,218.9,32.26]
[1759324224027,5.23664734,218.98,218.91,0.2]
[1759324224830,5.23664734,218.98,218.92,4.56787867]
[1759324225520,5.23664734,218.98,218.91,4.768087]
[1759324227913,0.66,219.01,218.94,20.8]
[1759324228113,13.59559401,219.02,218.95,32.06]
[1759324228327,13.59559401,219.02,218.95,32.26]
[1759324229127,14.25559401,219.02,218.95,32.26]
[1759324229706,14.25559401,219.02,218.96,4.5670442]
[1759324231326,0.66,219.01,218.96,4.5670442]
[1759324231631,0.66,219.0,218.96,4.5670442]
[1759324234614,2.38320671,219.01,218.96,4.5670442]
[1759324234806,3.04320671,219.01,218.96,4.5670442]
[1759324235007,3.04320671,219.01,218.96,40.1870442]
[1759324235225,0.66,219.0,218.96,40.1870442]
[1759324236417,0.66,218.99,218.96,40.1870442]
[1759324236621,0.66,218.99,218.97,32.06]
[1759324237332,0.66,218.99,218.97,36.62679885]
[1759324237733,3.04320671,219.01,218.97,36.62679885]
[1759324241314,2.38320671,219.01,218.97,36.62679885]
[1759324241519,2.38320671,219.01,218.97,36.82679885]
[1759324242533,3.04320671,219.01,218.97,36.62679885]
[1759324243238,2.38320671,219.01,218.98,0.2]
[1759324243422,0.66,219.05,218.98,6.82116231]
[1759324243735,2.3828505,219.04,218.98,0.2]
[1759324244619,2.3828505,219.04,218.98,13.79559401]
[1759324244824,2.3828505,219.04,219.01,20.8]
[1759324245018,2.3828505,219.04,219.03,4.56558462]
[1759324245538,0.66,219.16,219.02,36.60576016]
[1759324245753,0.1,219.21,219.02,36.60576016]
[1759324245754,5.09153031,219.38,219.19,2.38356187]
[1759324245912,0.5,219.45,219.21,20.0]
[1759324246116,0.5,219.45,219.19,8.83039887]
[1759324246117,13.69487811,219.39,219.19,8.83039887]
[1759324246317,2.05561345,219.34,219.23,20.8]
[1759324246511,13.69487811,219.39,219.24,32.76]
[1759324246712,2.05561345,219.34,219.24,46.45331537]
[1759324246934,2015.94969889,219.44,219.27,20.8]
[1759324247141,4.55811489,219.39,219.28,32.86]
[1759324247527,0.28432314,219.38,219.28,32.86]
[1759324247844,0.80216157,219.38,219.28,32.86]
[1759324248026,0.66,219.38,219.28,46.33863703]
[1759324248350,4.55850845,219.37,219.28,46.33863703]
[1759324248650,4.55850845,219.37,219.28,32.86]
[1759324248818,0.28432314,219.36,219.28,32.86]
[1759324249148,0.14216157,219.36,219.28,32.86]
[1759324250024,0.28432314,219.36,219.28,32.86]
[1759324250841,0.28432314,219.34,219.28,32.86]
[1759324252345,0.28432314,219.36,219.28,32.86]
[1759324253124,4.55850845,219.37,219.28,32.86]
[1759324253855,0.28432314,219.36,219.28,32.86]
[1759324254343,4.55892409,219.35,219.28,32.86]
[1759324254724,0.28432314,219.34,219.28,32.86]
[1759324255128,4.55892409,219.35,219.28,32.86]
[1759324256548,4.5593398,219.33,219.28,32.86]
[1759324257129,0.68,219.32,219.28,32.86]
[1759324257437,15.95768931,219.33,219.28,32.86]
[1759324258244,0.28432314,219.32,219.28,32.86]
[1759324258427,0.28432314,219.29,219.28,32.86]
[1759324258623,0.28432314,219.34,219.28,32.86]
[1759324260430,4.5593398,219.33,219.28,32.86]
[1759324261932,4.5587009,219.37,219.28,32.86]
[1759324262141,6.61431435,219.37,219.28,32.86]
[1759324262334,0.28432314,219.36,219.28,32.86]
[1759324262630,0.28432314,219.34,219.28,32.86]
[1759324263356,18.01184777,219.35,219.28,32.86]
[1759324263357,2.05561345,219.32,219.28,32.86]
[1759324263567,16.24055746,219.35,219.28,32.86]
[1759324263568,0.28432314,219.34,219.28,32.86]
[1759324263736,2.05561345,219.33,219.28,32.86]
[1759324264334,2.33993659,219.34,219.28,32.86]
[1759324264547,0.28432314,219.32,219.28,32.86]
[1759324264850,4.55975559,219.31,219.28,32.86]
[1759324274436,15.95914458,219.31,219.28,32.86]
[1759324274633,2.05561345,219.29,219.24,20.8]
[1759324274960,2.05561345,219.29,219.25,32.8]
[1759324275257,2.33993659,219.3,219.25,32.8]
[1759324275758,3.01993659,219.3,219.25,32.8]
[1759324275983,4.56017146,219.29,219.25,32.8]
[1759324276543,15.96060011,219.29,219.25,32.8]
[1759324279869,2.70561345,219.28,219.25,32.8]
[1759324280063,6.61640885,219.26,219.25,32.8]
[1759324280266,5.2107954,219.26,219.25,32.8]
[1759324280654,7.55073199,219.26,219.25,32.8]
[1759324284967,4.56046085,219.28,219.25,32.8]
[1759324285469,5.28046085,219.28,219.25,32.8]
[1759324285642,3.05993659,219.27,219.25,32.8]
[1759324285973,0.72,219.26,219.25,32.8]
[1759324286162,3.05993659,219.26,219.25,32.8]
[1759324286366,8.76960052,219.26,219.25,32.8]
[1759324287472,5.56511854,219.26,219.25,32.8]
[1759324287975,8.76960052,219.26,219.25,32.8]
[1759324291004,0.28432314,219.25,219.18,36.26]
[1759324291276,19.88726588,219.26,219.18,35.6]
[1759324291277,3.48880512,219.21,219.18,35.6]
[1759324291475,4.20880512,219.21,219.18,35.6]
[1759324291657,0.28432314,219.21,219.18,35.6]
[1759324291858,4.56204379,219.2,219.18,35.6]
[1759324292067,4.56204379,219.2,219.19,32.76]
[1759324293469,4.56204379,219.2,219.19,33.42]
[1759324293879,15.96612474,219.22,219.19,32.76]
[1759324294176,4.20880512,219.21,219.19,32.76]
[1759324294685,3.48880512,219.21,219.19,32.76]
[1759324294866,4.20880512,219.21,219.19,32.76]
[1759324295053,4.20880512,219.2,219.19,32.76]
[1759324295993,8.77084891,219.2,219.19,32.76]
[1759324296366,11.1524306,219.2,219.19,32.76]